bitfinex/quotes_SOLUSD_20250904
["timestamp","ask_amount","ask_price","bid_price","bid_amount"]
[1757010577842,81.27314978,203.73,203.71,0.03]
[1757010578044,9.11614014,203.72,203.71,0.03]
[1757010578338,9.11614014,203.72,203.7,0.03]
[1757010578541,35.71614014,203.71,203.7,0.03]
[1757010578728,74.39614014,203.71,203.7,0.03]
[1757010579632,79.30507931,203.71,203.7,0.03]
[1757010580239,70.18893917,203.71,203.7,0.03]
[1757010580435,79.30507931,203.71,203.7,0.03]
[1757010581155,79.30507931,203.71,203.69,0.03]
[1757010581345,9.11614014,203.7,203.69,0.03]
[1757010581849,23.39960823,203.7,203.69,0.03]
[1757010582729,26.0,203.68,203.67,0.03]
[1757010582930,69.23807007,203.68,203.67,0.03]
[1757010583233,74.74773228,203.68,203.67,0.03]
[1757010583441,76.71686611,203.68,203.67,0.03]
[1757010583632,76.11686611,203.68,203.67,0.03]
[1757010586136,76.71686611,203.68,203.67,0.03]
[1757010586445,4.55807007,203.68,203.67,0.74]
[1757010586650,69.23807007,203.68,203.67,0.74]
[1757010588035,64.68,203.68,203.67,0.03]
[1757010588245,69.23807007,203.68,203.67,0.03]
[1757010588446,69.23807007,203.68,203.67,0.71]
[1757010589845,26.0,203.68,203.67,0.71]
[1757010590031,69.23807007,203.68,203.67,0.71]
[1757010591152,69.23807007,203.68,203.67,0.03]
[1757010591447,69.23807007,203.68,203.67,0.71]
[1757010591846,74.14773228,203.68,203.67,0.03]
[1757010592452,48.74773228,203.68,203.67,0.03]
[1757010593136,50.71676917,203.68,203.67,0.03]
[1757010593340,50.11676917,203.68,203.67,0.03]
[1757010595741,45.5586991,203.68,203.67,0.03]
[1757010595942,50.11676917,203.68,203.67,0.03]
[1757010596759,50.71676917,203.68,203.67,0.03]
[1757010597258,62.9909247,203.68,203.59,0.08787408]
[1757010597557,46.0,203.65,203.59,0.08787408]
[1757010597733,26.0,203.61,203.59,0.08787408]
[1757010597934,74.17614014,203.6,203.59,0.08787408]
[1757010598233,65.1,203.6,203.59,0.08787408]
[1757010598533,67.06990963,203.6,203.59,0.08787408]
[1757010598942,76.18604977,203.6,203.59,0.08787408]
[1757010599252,67.06990963,203.6,203.59,0.08787408]
[1757010599448,76.18604977,203.6,203.59,0.08787408]
[1757010599644,81.09764112,203.6,203.59,0.08787408]
[1757010599953,32.88150098,203.6,203.59,0.08787408]
[1757010600153,41.99764112,203.6,203.59,0.08787408]
[1757010600360,41.12990963,203.6,203.59,0.76787408]
[1757010600540,69.71807007,203.6,203.59,0.76787408]
[1757010600741,65.16,203.6,203.59,0.76787408]
[1757010600950,0.66,203.69,203.59,0.76787408]
[1757010601152,1.96952165,203.62,203.59,0.76787408]
[1757010601355,4.55807007,203.6,203.59,0.76787408]
[1757010601740,39.18,203.61,203.59,0.08787408]
[1757010601956,44.09141155,203.61,203.59,0.08787408]
[1757010602158,9.71614014,203.6,203.59,0.08787408]
[1757010602338,9.11614014,203.6,203.59,0.08787408]
[1757010603056,46.31807007,203.6,203.59,0.08787408]
[1757010603564,9.11614014,203.6,203.59,0.08787408]
[1757010603746,50.91614014,203.6,203.59,0.08787408]
[1757010603943,35.11614014,203.6,203.59,0.08787408]
[1757010604149,46.39807007,203.6,203.59,0.08787408]
[1757010604448,41.84,203.6,203.59,0.08787408]
[1757010604641,46.39807007,203.6,203.59,0.08787408]
[1757010605353,56.46773149,203.6,203.59,0.08787408]
[1757010605852,26.0,203.57,203.55,0.1]
[1757010606053,30.55807007,203.56,203.55,0.1]
[1757010606237,68.02,203.56,203.55,0.1]
[1757010606439,42.02,203.57,203.55,0.1]
[1757010606761,42.02,203.57,203.55,0.78]
[1757010606967,0.6,203.66,203.55,5.69268406]
[1757010607163,4.55807007,203.6,203.55,9.75075413]
[1757010607363,42.08,203.6,203.57,4.55807007]
[1757010607565,14.7714124,203.63,203.57,4.55807007]
[1757010607566,42.08,203.61,203.57,4.55807007]
[1757010607752,13.68615019,203.65,203.57,9.47016551]
[1757010607954,4.55807007,203.63,203.57,9.47016551]
[1757010608150,4.55807007,203.61,203.57,4.91209544]
[1757010608381,42.08,203.62,203.56,13.59559401]
[1757010608569,4.55807007,203.61,203.56,13.59559401]
[1757010608776,4.55807007,203.61,203.56,18.15366408]
[1757010609083,42.08,203.62,203.58,4.55807007]
[1757010609263,42.12,203.64,203.59,0.68]
[1757010609577,42.12,203.64,203.59,3.60257841]
[1757010609784,42.12,203.64,203.6,0.68]
[1757010610070,45.04257841,203.64,203.6,0.68]
[1757010610643,2.92257841,203.61,203.58,0.68]
[1757010610861,2.92257841,203.59,203.54,18.50863321]
[1757010611059,2.92257841,203.57,203.54,18.50863321]
[1757010611259,2.92257841,203.58,203.54,18.50863321]
[1757010611468,68.12,203.61,203.55,0.68]
[1757010611661,2.92257841,203.58,203.55,0.68]
[1757010612072,42.14,203.58,203.56,0.68]
[1757010612271,2.92257841,203.57,203.54,4.91301944]
[1757010612670,45.06257841,203.58,203.54,4.91301944]
[1757010612864,45.06257841,203.58,203.52,0.09055618]
[1757010612865,2.92257841,203.55,203.52,0.77055618]
[1757010613072,45.06257841,203.55,203.53,0.68]
[1757010613258,45.06257841,203.55,203.52,0.09055618]
[1757010613572,2.92257841,203.53,203.52,0.09055618]
[1757010613870,28.92257841,203.53,203.52,0.09055618]
[1757010614177,26.0,203.53,203.52,0.09055618]
[1757010614364,28.92257841,203.53,203.52,0.09055618]
[1757010615272,26.0,203.53,203.52,0.09055618]
[1757010615469,28.92257841,203.53,203.52,0.09055618]
[1757010615960,0.69,203.6,203.52,0.77055618]
[1757010616164,26.0,203.56,203.46,0.18085192]
[1757010616373,26.0,203.56,203.38,0.1]
[1757010616374,16.16558769,203.46,203.38,0.1]
[1757010616675,2.92257841,203.39,203.38,0.1]
[1757010616866,26.0,203.36,203.33,0.09860248]
[1757010617067,50.00682022,203.39,203.33,0.09860248]
[1757010617068,47.12424181,203.35,203.33,0.09860248]
[1757010617277,6.54682022,203.34,203.33,0.09860248]
[1757010617579,37.64602529,203.34,203.33,0.09860248]
[1757010617778,80.43602529,203.34,203.33,0.09860248]
[1757010617976,80.41602529,203.34,203.33,0.09860248]
[1757010618177,9.20211335,203.34,203.24,0.67]
[1757010618374,9.20211335,203.34,203.22,1.97214347]
[1757010618375,47.08424181,203.33,203.27,0.67]
[1757010618579,7.33178348,203.28,203.23,0.67]
[1757010618761,26.0,203.24,203.2,0.10396669]
[1757010618966,54.40404659,203.27,203.13,0.10664879]
[1757010618967,40.66356696,203.21,203.13,0.10664879]
[1757010619163,7.33178348,203.14,203.13,0.10664879]
[1757010619369,7.33178348,203.14,203.03,4.92321792]
[1757010619588,14.66356696,203.04,202.86,20.0]
[1757010619892,33.33178348,203.01,202.95,4.92321792]
[1757010620203,33.33178348,203.01,202.78,4.9314]
[1757010620204,26.0,202.93,202.78,4.9314]
[1757010620492,7.99178348,202.92,202.74,4.93242576]
[1757010620693,7.33178348,202.84,202.77,0.67]
[1757010620857,26.0,202.88,202.77,14.82323294]
[1757010620858,0.66,202.83,202.77,14.82323294]
[1757010621058,26.66,202.88,202.8,7.33178348]
[1757010621276,70.56,202.89,202.81,0.67]
[1757010621483,26.0,202.99,202.81,0.67]
[1757010621787,0.66,202.97,202.81,0.67]
[1757010621991,0.66,202.97,202.82,17.25668079]
[1757010622193,44.54,202.97,202.86,26.0]
[1757010622359,14.81518062,203.03,202.87,0.67]
[1757010622679,26.0,202.97,202.87,0.67]
[1757010622982,26.0,202.97,202.83,13.59559401]
[1757010623285,14.81518062,203.03,202.87,13.59559401]
[1757010623286,44.64,202.98,202.87,13.59559401]
[1757010623471,37.98797768,203.02,202.87,13.59559401]
[1757010623472,29.9961942,203.02,202.96,7.33178348]
[1757010623679,29.9961942,203.02,202.98,7.33178348]
[1757010623862,29.9961942,203.02,203.01,7.33178348]
[1757010624057,74.6761942,203.02,202.93,18.52334864]
[1757010624384,74.6761942,203.02,202.94,0.67]
[1757010624385,88.27178821,203.02,202.94,0.67]
[1757010624680,29.9961942,203.02,203.01,7.33178348]
[1757010624887,74.6761942,203.02,203.01,7.33178348]
[1757010625386,74.6561942,203.02,203.01,7.33178348]
[1757010625679,29.9961942,203.02,203.01,7.33178348]
[1757010625884,29.9961942,203.02,203.01,0.67]
[1757010626078,74.6561942,203.02,203.01,7.33178348]
[1757010626385,75.3161942,203.02,202.98,7.33178348]
[1757010626683,44.62,203.01,203.0,7.33178348]
[1757010626872,44.68,203.07,203.01,14.26559401]
[1757010627180,44.68,203.07,203.06,7.33178348]
[1757010627579,44.68,203.07,203.03,7.33178348]
[1757010627784,7.33178348,203.05,202.95,0.67]
[1757010627978,7.33178348,203.01,202.91,0.67]
[1757010628168,26.66,203.04,203.0,7.33178348]
[1757010628169,26.0,203.03,203.0,7.33178348]
[1757010628368,0.66,203.07,203.02,7.33178348]
[1757010628689,44.68,203.06,203.02,7.33178348]
[1757010628984,26.0,203.07,203.05,7.33178348]
[1757010629162,44.68,203.05,203.0,7.33178348]
[1757010629681,44.68,203.05,203.02,7.33178348]
[1757010629866,44.62,203.04,203.02,7.33178348]
[1757010630062,7.99178348,203.03,202.95,7.33178348]
[1757010630262,7.99178348,203.03,202.87,12.32314487]
[1757010630263,26.0,202.99,202.92,0.67]
[1757010630483,51.93178348,202.98,202.92,0.67]
[1757010630691,44.6,202.98,202.93,7.33178348]
[1757010630984,44.6,202.98,202.94,8.00178348]
[1757010631176,44.6,202.98,202.89,13.59559401]
[1757010631177,44.56,202.97,202.95,0.67]
[1757010631494,44.54,203.01,202.96,8.00178348]
[1757010631658,44.54,203.01,203.0,7.33178348]
[1757010631863,44.54,203.01,203.0,8.00178348]
[1757010632162,44.52,203.04,203.0,0.67]
[1757010632361,0.66,203.15,203.03,7.33178348]
[1757010632558,44.5,203.1,203.03,0.67]
[1757010632968,21.90457816,203.11,203.09,7.33178348]
[1757010633290,21.90457816,203.11,203.04,13.59559401]
[1757010633291,45.14,203.1,203.04,13.59559401]
[1757010633500,45.14,203.1,202.95,4.927322]
[1757010633501,7.33178348,203.06,202.95,4.927322]
[1757010633664,51.79178348,203.05,202.95,5.597322]
[1757010633982,26.0,203.07,203.03,7.33178348]
[1757010634184,0.66,203.1,203.03,7.33178348]
[1757010634185,44.46,203.06,203.03,7.33178348]
[1757010634400,7.33178348,203.04,203.0,4.95605537]
[1757010634692,7.33178348,203.03,203.0,4.95605537]
[1757010634901,7.33178348,203.01,203.0,4.95605537]
[1757010635205,51.77178348,203.01,203.0,0.03]
[1757010635485,26.0,202.98,202.97,0.03]
[1757010635678,33.33178348,202.98,202.97,0.03]
[1757010635884,33.99178348,202.98,202.97,0.03]
[1757010636975,26.0,202.94,202.8,0.67]
[1757010637195,13.59559401,202.97,202.8,0.67]
[1757010637196,7.33178348,202.84,202.8,0.67]
[1757010637495,44.4,202.84,202.81,0.67]
[1757010637703,44.4,202.84,202.79,4.93120962]
[1757010637704,51.73178348,202.84,202.79,4.93120962]
[1757010637984,51.73178348,202.84,202.77,4.92860888]
[1757010637985,26.0,202.78,202.77,4.92860888]
[1757010638365,0.66,202.84,202.73,7.33178348]
[1757010638566,7.33178348,202.8,202.73,8.00178348]
[1757010638997,7.33178348,202.83,202.77,7.33178348]
[1757010639166,14.82469795,202.88,202.78,0.67]
[1757010639364,0.66,202.92,202.84,7.33178348]
[1757010639582,38.97178348,202.91,202.84,0.67]
[1757010639782,44.34,202.9,202.85,7.33178348]
[1757010640090,51.67178348,202.9,202.85,4.92975104]
[1757010640271,51.67178348,202.9,202.85,5.59975104]
[1757010640477,14.82250055,202.92,202.87,7.33178348]
[1757010640679,44.34,202.91,202.88,7.33178348]
[1757010640876,44.3,202.9,202.83,12.2617987]
[1757010641206,0.66,202.92,202.83,4.93001522]
[1757010641394,7.33178348,202.89,202.83,11.7617987]
[1757010641694,44.28,202.88,202.84,7.33178348]
[1757010641894,7.33178348,202.9,202.85,0.67]
[1757010642073,44.28,202.89,202.85,0.67]
[1757010642273,7.33178348,202.88,202.82,13.59559401]
[1757010642470,7.33178348,202.86,202.81,0.67]
[1757010642669,44.28,202.89,202.81,0.67]
[1757010642882,44.28,202.89,202.79,4.93104547]
[1757010642883,7.33178348,202.83,202.79,4.93104547]
[1757010643065,7.33178348,202.81,202.77,4.93145864]
[1757010643296,44.28,202.8,202.77,4.93145864]
[1757010643469,44.28,202.8,202.77,5.60145864]
[1757010643790,44.26,202.79,202.78,8.00178348]
[1757010643989,44.24,202.79,202.78,0.67]
[1757010644293,7.33178348,202.83,202.78,5.6014528]
[1757010644478,7.33178348,202.85,202.79,0.67]
[1757010644684,44.22,202.84,202.79,0.67]
[1757010644886,7.33178348,202.86,202.8,14.26559401]
[1757010645190,44.18,202.85,202.81,7.33178348]
[1757010645391,44.18,202.85,202.82,0.67]
[1757010645783,7.33178348,202.88,202.83,0.67]
[1757010646090,44.16,202.87,202.84,0.67]
[1757010646291,44.16,202.87,202.85,4.92975104]
[1757010646477,13.59559401,202.91,202.85,24.58591213]
[1757010646797,7.33178348,202.93,202.88,7.33178348]
[1757010646997,34.06,203.01,202.86,0.67]
[1757010646998,0.66,202.99,202.89,8.00178348]
[1757010647203,7.33178348,202.91,202.85,17.92412865]
[1757010647369,44.1,202.9,202.86,7.33178348]
[1757010647568,7.33178348,202.96,202.89,7.33178348]
[1757010647774,0.7,203.0,202.89,0.7]
[1757010648090,7.33178348,202.9,202.85,4.92975104]
[1757010648277,7.33178348,202.9,202.83,4.93023714]
[1757010648278,7.33178348,202.87,202.83,4.93023714]
[1757010648475,7.33178348,202.88,202.83,4.93023714]
[1757010648688,51.41178348,202.89,202.83,25.28761348]
[1757010648890,14.82323295,202.9,202.83,25.28761348]
[1757010649109,51.39178348,202.89,202.83,0.7]
[1757010649294,7.33178348,202.84,202.76,14.29559401]
[1757010649495,7.33178348,202.82,202.76,8.03178348]
[1757010649784,44.08,202.81,202.77,7.33178348]
[1757010649991,26.0,202.86,202.77,8.03178348]
[1757010649992,44.08,202.8,202.77,8.03178348]
[1757010650185,44.08,202.79,202.78,4.9314528]
[1757010650575,51.39178348,202.79,202.74,4.93242576]
[1757010650774,51.39178348,202.79,202.68,5.63388592]
[1757010650775,7.33178348,202.75,202.68,5.63388592]
[1757010650969,0.7,202.82,202.72,7.33178348]
[1757010651287,7.33178348,202.78,202.72,7.33178348]
[1757010651489,0.7,202.82,202.73,13.59559401]
[1757010652083,7.33178348,202.84,202.78,7.33178348]
[1757010652280,44.04,202.81,202.78,4.9314528]
[1757010652891,7.33178348,202.83,202.78,4.9314528]
[1757010653075,7.33178348,202.84,202.79,0.7]
[1757010653281,7.33178348,202.87,202.81,7.33178348]
[1757010653597,15.52323295,202.9,202.82,7.33178348]
[1757010653787,7.33178348,202.88,202.82,7.33178348]
[1757010654193,43.94,202.87,202.83,20.92737749]
[1757010654381,43.94,202.86,202.85,4.92975104]
[1757010655494,7.33178348,202.9,202.85,4.92975104]
[1757010655688,14.82250056,202.93,202.85,24.58591213]
[1757010655886,43.88,202.89,202.85,24.58591213]
[1757010656400,0.7,202.98,202.89,13.59559401]
[1757010656593,14.82176823,202.94,202.9,7.33178348]
[1757010656792,7.33178348,202.99,202.93,7.33178348]
[1757010656977,51.15178348,202.98,202.93,7.33178348]
[1757010657175,43.82,202.98,202.93,0.7]
[1757010657383,43.8,202.97,202.93,0.7]
[1757010657684,7.33178348,202.99,202.93,8.03178348]
[1757010657885,43.78,202.98,202.93,0.7]
[1757010658091,43.78,202.98,202.94,7.33178348]
[1757010658294,14.29559401,203.02,202.97,7.33178348]
[1757010658482,43.76,203.01,202.98,7.33178348]
[1757010658708,0.06,203.04,203.0,7.33178348]
[1757010658889,0.06,203.04,203.01,7.33178348]
[1757010659098,43.74,203.03,203.0,0.7]
[1757010659301,51.07178348,203.03,202.98,20.92737749]
[1757010659502,51.07178348,203.03,202.98,0.7]
[1757010659805,43.74,203.03,202.96,13.59559401]
[1757010659986,43.74,203.03,202.98,0.7]
[1757010660188,0.06,203.04,203.02,7.33178348]
[1757010660405,0.06,203.04,202.99,0.7]
[1757010660406,0.06,203.04,203.03,7.33178348]
[1757010660701,21.30971241,203.1,203.08,7.33178348]
[1757010660878,43.68,203.11,203.04,14.29559401]
[1757010661077,43.68,203.11,203.07,7.33178348]
[1757010661510,7.33178348,203.15,203.09,7.33178348]
[1757010661683,43.66,203.11,203.08,8.03178348]
[1757010661878,50.99178348,203.11,203.01,26.0]
[1757010662083,43.66,203.11,203.06,7.33178348]
[1757010662393,43.66,203.11,203.04,4.9251379]
[1757010662394,7.33178348,203.09,203.04,4.9251379]
[1757010662591,10.91771312,203.08,203.04,4.9251379]
[1757010662796,7.33178348,203.08,203.04,4.9251379]
[1757010662997,8.03178348,203.08,203.02,12.25717586]
[1757010663202,3.59067098,203.07,203.02,12.25717586]
[1757010663399,7.33178348,203.07,203.02,4.92539238]
[1757010663607,7.33178348,203.07,202.8,13.05584894]
[1757010663608,26.0,203.05,202.9,0.7]
[1757010663783,10.92139039,203.04,202.9,0.7]
[1757010664104,3.58960691,203.03,202.9,0.7]
[1757010664323,3.58960691,203.03,202.9,13.0212673]
[1757010664324,4.28960691,203.02,202.9,13.0212673]
[1757010664482,4.28960691,203.02,202.93,7.33178348]
[1757010664483,3.58960691,203.01,202.93,7.33178348]
[1757010664683,3.58960691,203.0,202.92,14.29559401]
[1757010664904,3.58960691,202.99,202.93,0.7]
[1757010665086,10.86,203.01,202.98,7.33178348]
[1757010665404,10.86,203.01,202.93,0.7]
[1757010665405,11.62366918,203.0,202.93,0.7]
[1757010665706,3.5918857,202.99,202.96,7.33178348]
[1757010665890,10.86,203.01,202.94,13.59559401]
[1757010666209,10.86,203.01,202.96,7.33178348]
[1757010666414,10.86,203.01,202.97,4.92683647]
[1757010666592,18.89178348,203.01,202.92,4.92805046]
[1757010666797,7.33178348,203.0,202.94,7.33178348]
[1757010666996,7.33178348,202.99,202.92,12.25983394]
[1757010667309,26.0,203.06,202.92,12.25983394]
[1757010667310,44.26,203.02,202.97,7.33178348]
[1757010667618,51.59178348,203.02,202.95,0.7]
[1757010667785,51.59178348,203.02,202.92,4.92805046]
[1757010667786,51.59178348,203.02,202.92,5.62805046]
[1757010667986,51.59178348,203.02,202.94,13.59559401]
[1757010668204,44.26,203.02,202.94,13.59559401]
[1757010668399,7.33178348,202.97,202.92,4.92805046]
[1757010668604,0.7,202.97,202.89,0.7]
[1757010668807,0.7,202.97,202.9,12.2603197]
[1757010669107,7.33178348,202.96,202.9,12.2603197]
[1757010669307,7.33178348,202.96,202.89,0.7]
[1757010669308,7.33178348,202.94,202.88,12.26066576]
[1757010669513,44.18,202.95,202.87,4.92924526]
[1757010669514,11.10511636,202.92,202.87,4.92924526]
[1757010669699,11.10511636,202.92,202.84,13.59559401]
[1757010669700,11.10511636,202.9,202.83,4.93023714]
[1757010670010,11.10511636,202.89,202.82,5.63047895]
[1757010670211,0.7,202.91,202.86,11.10511636]
[1757010670527,11.80511636,202.94,202.88,11.10511636]
[1757010670812,11.80511636,202.94,202.82,17.25667952]
[1757010670813,11.80511636,202.97,202.87,13.59559401]
[1757010670989,44.08,202.96,202.91,11.10511636]
[1757010671193,44.78,202.96,202.87,13.59559401]
[1757010671489,0.7,202.99,202.95,11.10511636]
[1757010671700,44.12,202.98,202.94,11.10511636]
[1757010671914,44.12,202.97,202.91,13.59559401]
[1757010672226,44.1,202.98,202.96,11.10511636]
[1757010672399,44.1,202.99,202.97,11.10511636]
[1757010672927,44.1,202.99,202.94,5.62756479]
[1757010673105,0.7,203.03,202.95,14.29559401]
[1757010673424,37.72,203.02,202.96,14.29559401]
[1757010673743,4.9239271,203.09,203.01,11.10511636]
[1757010673744,11.10511636,203.08,203.01,11.10511636]
[1757010673898,11.10511636,203.08,202.99,0.7]
[1757010674219,11.10511636,203.05,202.96,0.7]
[1757010674390,44.02,203.04,202.93,0.7]
[1757010674723,4.92546161,203.03,202.95,11.10511636]
[1757010674895,11.10511636,203.01,202.95,11.10511636]
[1757010675106,11.10511636,202.98,202.9,13.59559401]
[1757010675307,55.06511636,202.97,202.92,11.10511636]
[1757010675521,43.96,202.97,202.93,11.80511636]
[1757010675722,43.96,202.99,202.95,11.10511636]
[1757010675935,43.96,202.99,202.9,13.59559401]
[1757010675936,37.10511636,202.96,202.88,4.92902208]
[1757010676231,0.7,202.98,202.89,11.10511636]
[1757010676523,43.92,202.97,202.93,11.10511636]
[1757010676714,43.92,202.97,202.94,11.10511636]
[1757010677115,43.92,202.98,202.94,11.80511636]
[1757010677510,43.92,202.98,202.94,0.7]
[1757010677826,43.88,202.99,202.95,11.80511636]
[1757010678024,43.88,202.99,202.95,0.7]
[1757010678532,26.0,202.96,202.87,0.73]
[1757010678705,11.10511636,202.89,202.87,0.03]
[1757010678904,43.82,202.9,202.87,0.03]
[1757010679105,0.67,202.89,202.87,0.03]
[1757010679305,11.10511636,202.88,202.87,0.03]
[1757010679820,43.8,202.88,202.87,0.03]
[1757010680124,0.67,202.94,202.87,5.65915356]
[1757010680323,11.10511636,202.91,202.87,0.03]
[1757010680636,43.78,202.93,202.87,0.03]
[1757010680807,11.10511636,202.9,202.87,0.03]
[1757010681214,11.10511636,202.91,202.87,0.03]
[1757010681505,0.67,202.94,202.88,11.10511636]
[1757010681720,11.10511636,202.89,202.87,0.03]
[1757010682032,11.10511636,202.88,202.87,0.03]
[1757010682338,0.67,202.88,202.87,0.03]
[1757010682527,11.77511636,202.88,202.87,0.03]
[1757010682725,16.70413844,202.88,202.87,0.03]
[1757010683418,0.67,202.88,202.87,0.03]
[1757010683620,43.66,202.88,202.87,0.03]
[1757010683831,54.76511636,202.88,202.87,0.03]
[1757010684029,43.66,202.88,202.87,0.03]
[1757010684225,55.43511636,202.88,202.87,0.03]
[1757010684731,54.74511636,202.88,202.87,0.03]
[1757010684930,55.41511636,202.88,202.87,0.03]
[1757010685336,44.31,202.88,202.87,0.03]
[1757010685513,55.41511636,202.88,202.87,0.03]
[1757010687131,49.23902208,202.88,202.87,0.03]
[1757010687338,60.34413844,202.88,202.87,0.03]
[1757010688342,11.77511636,202.88,202.87,0.03]
[1757010688526,55.27511636,202.88,202.87,0.03]
[1757010688723,26.67,202.91,202.87,0.03]
[1757010688926,54.60511636,202.88,202.87,0.03]
[1757010689141,11.10511636,202.88,202.87,0.03]
[1757010689319,54.58511636,202.88,202.87,0.03]
[1757010689822,55.25511636,202.88,202.87,0.03]
[1757010690030,60.18413844,202.88,202.87,0.03]
[1757010692138,71.2892548,202.88,202.87,0.03]
[1757010692337,60.18413844,202.88,202.87,0.03]
[1757010692726,86.18413844,202.88,202.87,0.03]
[1757010692919,26.0,202.88,202.87,0.03]
[1757010693236,80.50511636,202.88,202.87,0.03]
[1757010693536,54.50511636,202.88,202.87,0.03]
[1757010693724,54.46511636,202.88,202.87,0.03]
[1757010695221,60.06413844,202.88,202.87,0.03]
[1757010696340,48.28902208,202.88,202.87,0.03]
[1757010696520,59.39413844,202.88,202.87,0.03]
[1757010697144,60.06413844,202.88,202.87,0.03]
[1757010697325,60.06413844,202.88,202.84,0.03]
[1757010697326,26.0,202.85,202.84,0.03]
[1757010697530,80.34511636,202.85,202.84,0.03]
[1757010697753,81.01511636,202.85,202.84,0.03]
[1757010698341,85.9448674,202.85,202.84,0.03]
[1757010699224,85.2148674,202.85,202.84,0.03]
[1757010700030,12.32084999,202.91,202.84,0.03]
[1757010700234,11.10511636,202.85,202.84,0.73]
[1757010700440,54.24511636,202.85,202.84,0.73]
[1757010700639,54.24511636,202.85,202.84,0.03]
[1757010701745,26.67,202.91,202.84,0.03]
[1757010701954,11.10511636,202.85,202.84,0.73]
[1757010702126,54.20511636,202.85,202.84,0.73]
[1757010702322,54.87511636,202.85,202.84,0.03]
[1757010702528,59.8048674,202.85,202.84,0.03]
[1757010703053,59.1348674,202.85,202.84,0.03]
[1757010703432,59.8048674,202.85,202.84,0.03]
[1757010707049,59.8048674,202.85,202.68,4.93376207]
[1757010707237,26.0,202.81,202.7,0.7]
[1757010707549,26.0,202.77,202.7,0.7]
[1757010707735,0.67,202.84,202.7,0.7]
[1757010707930,11.10511636,202.75,202.7,0.7]
[1757010708141,11.10511636,202.74,202.7,0.7]
[1757010708333,43.0,202.73,202.71,0.66]
[1757010708534,54.10511636,202.73,202.72,0.66]
[1757010708954,43.0,202.73,202.72,0.66]
[1757010709150,54.10511636,202.73,202.72,0.66]
[1757010709352,11.10511636,202.75,202.72,0.66]
[1757010709544,42.94,202.74,202.72,0.66]
[1757010709734,0.67,202.83,202.73,0.66]
[1757010709937,11.10511636,202.76,202.73,0.66]
[1757010710156,54.02511636,202.75,202.74,0.66]
[1757010710352,54.02511636,202.75,202.71,0.66]
[1757010710553,54.02511636,202.75,202.72,0.66]
[1757010710554,11.10511636,202.73,202.72,0.66]
[1757010710856,11.10511636,202.73,202.68,4.93388257]
[1757010711054,42.9,202.72,202.68,4.93388257]
[1757010711250,11.10511636,202.73,202.69,0.66]
[1757010711457,42.92,202.71,202.7,0.66]
[1757010711655,11.10511636,202.74,202.71,0.66]
[1757010711857,42.88,202.73,202.71,0.66]
[1757010712058,11.10511636,202.72,202.71,0.66]
[1757010712251,42.88,202.73,202.69,0.03]
[1757010712754,42.88,202.73,202.69,0.69]
[1757010712958,11.10511636,202.71,202.69,0.69]
[1757010713149,42.86,202.7,202.69,0.69]
[1757010713350,11.10511636,202.71,202.69,0.69]
[1757010713551,42.86,202.7,202.69,11.79511636]
[1757010713752,42.86,202.7,202.69,0.69]
[1757010713949,0.67,202.81,202.69,0.69]
[1757010713950,11.10511636,202.74,202.69,0.69]
[1757010714151,42.86,202.73,202.69,0.69]
[1757010714372,26.67,202.81,202.69,11.79511636]
[1757010714661,26.0,202.78,202.7,5.59339911]
[1757010714845,11.10511636,202.75,202.71,0.66]
[1757010715045,53.94511636,202.74,202.71,0.66]
[1757010715247,12.32498521,202.84,202.72,11.10511636]
[1757010715248,0.67,202.84,202.72,11.10511636]
[1757010715457,0.06,202.85,202.71,0.66]
[1757010715458,11.10511636,202.76,202.73,0.66]
[1757010715766,42.82,202.75,202.74,0.66]
[1757010716150,53.92511636,202.75,202.74,0.66]